bitfinex/quotes_BTCUSD_20250226
["timestamp","ask_amount","ask_price","bid_price","bid_amount"]
[1740571714139,0.0008478,88650.0,88643.0,0.00984]
[1740571714333,0.0008478,88650.0,88647.0,0.001]
[1740571715626,0.0008478,88650.0,88648.0,0.0829]
[1740571716960,0.0008478,88650.0,88648.0,0.0879]
[1740571717389,0.0008478,88650.0,88648.0,0.0929]
[1740571717587,0.0008478,88650.0,88649.0,0.00984]
[1740571717909,0.0008478,88650.0,88648.0,0.0929]
[1740571717910,0.169206,88649.0,88648.0,0.0929]
[1740571718069,0.169206,88649.0,88648.0,0.10274]
[1740571718692,0.0008478,88650.0,88648.0,0.10274]
[1740571718894,0.0008478,88650.0,88648.0,0.09774]
[1740571719344,0.0008478,88650.0,88648.0,0.09574]
[1740571719918,0.0008478,88650.0,88648.0,0.09274]
[1740571720133,0.0008478,88650.0,88649.0,0.005]
[1740571720662,0.1700518,88650.0,88648.0,0.09574]
[1740571721069,0.1700518,88650.0,88648.0,0.09874]
[1740571721523,0.1700518,88650.0,88648.0,0.09574]
[1740571721938,0.0008478,88650.0,88649.0,0.003]
[1740571722140,0.0008478,88650.0,88648.0,0.09574]
[1740571722923,0.0008478,88650.0,88649.0,0.003]
[1740571723537,0.0008478,88650.0,88648.0,0.09574]
[1740571723782,0.0008478,88650.0,88648.0,0.09874]
[1740571724211,0.0008478,88650.0,88648.0,0.09574]
[1740571724936,0.0008478,88650.0,88648.0,0.09244022]
[1740571725698,0.0008478,88650.0,88649.0,0.003]
[1740571725954,0.0008478,88650.0,88649.0,0.006]
[1740571726195,0.0008478,88650.0,88648.0,0.09244022]
[1740571726528,0.0008478,88650.0,88648.0,0.09844022]
[1740571726730,0.169206,88649.0,88648.0,0.09544022]
[1740571726976,0.1700528,88650.0,88648.0,0.09244022]
[1740571727177,0.0008478,88650.0,88648.0,0.09244022]
[1740571727382,0.0008478,88650.0,88649.0,0.003]
[1740571728269,0.0008478,88650.0,88649.0,0.006]
[1740571728429,0.0008478,88650.0,88649.0,0.00134681]
[1740571728662,0.1700518,88650.0,88649.0,0.00134681]
[1740571728984,0.0008478,88650.0,88649.0,0.00134681]
[1740571729948,0.0008478,88650.0,88649.0,0.00434681]
[1740571730153,0.0008478,88650.0,88649.0,0.00215398]
[1740571730885,0.0008478,88650.0,88649.0,0.00077043]
[1740571731556,0.0008478,88650.0,88648.0,0.08181137]
[1740571732787,0.0008478,88650.0,88648.0,0.08481137]
[1740571732993,0.0008478,88650.0,88648.0,0.08781137]
[1740571736550,0.0008478,88650.0,88649.0,0.00984]
[1740571738189,0.0008478,88650.0,88649.0,0.01284]
[1740571738979,0.0008478,88650.0,88649.0,0.01584]
[1740571739593,0.1700518,88650.0,88649.0,0.01584]
[1740571740739,0.0008478,88650.0,88649.0,0.01584]
[1740571740936,0.1700518,88650.0,88649.0,0.01584]
[1740571742715,0.0008478,88650.0,88649.0,0.01584]
[1740571747627,0.01854247,88650.0,88649.0,0.01584]
[1740571749054,0.18774647,88650.0,88649.0,0.01584]
[1740571749278,0.01854247,88650.0,88649.0,0.01584]
[1740571751737,0.01854247,88650.0,88649.0,0.006]
[1740571751942,0.01854247,88650.0,88649.0,0.01584]
[1740571752995,0.18774647,88650.0,88649.0,0.01584]
[1740571753199,0.01854247,88650.0,88649.0,0.01584]
[1740571754631,0.18774647,88650.0,88649.0,0.01584]
[1740571756548,0.01854247,88650.0,88649.0,0.01584]
[1740571757874,0.18774647,88650.0,88649.0,0.01584]
[1740571758727,0.01854247,88650.0,88649.0,0.01584]
[1740571758899,0.18774647,88650.0,88649.0,0.01584]
[1740571760607,0.1700518,88650.0,88649.0,0.01584]
[1740571761011,0.0008478,88650.0,88649.0,0.01584]
[1740571761220,0.1700518,88650.0,88649.0,0.01584]
[1740571761849,0.0008478,88650.0,88649.0,0.01584]
[1740571762046,0.0008478,88650.0,88649.0,0.006]
[1740571762246,0.0008478,88650.0,88649.0,0.01584]
[1740571762625,0.0008478,88650.0,88649.0,0.09744]
[1740571763890,0.1700518,88650.0,88649.0,0.09744]
[1740571765054,0.1877462,88650.0,88649.0,0.09744]
[1740571765266,0.0185422,88650.0,88649.0,0.09744]
[1740571765615,0.1877462,88650.0,88649.0,0.09744]
[1740571766771,0.0185422,88650.0,88649.0,0.14374]
[1740571766979,0.0008478,88650.0,88649.0,0.31452529]
[1740571767177,0.0008478,88650.0,88649.0,0.65973969]
[1740571767384,0.01769198,88669.0,88668.0,0.29547]
[1740571767628,0.0008476,88711.0,88688.0,0.1263]
[1740571767838,0.169128,88690.0,88689.0,0.00934]
[1740571768567,9.446e-05,88690.0,88689.0,0.00934]
[1740571768992,9.446e-05,88690.0,88689.0,0.17847]
[1740571769231,9.446e-05,88690.0,88689.0,0.18004854]
[1740571769440,9.446e-05,88690.0,88689.0,0.33278559]
[1740571769639,9.446e-05,88690.0,88689.0,0.25947]
[1740571769976,9.446e-05,88690.0,88689.0,0.27001085]
[1740571770227,0.01768597,88701.0,88689.0,0.27001085]
[1740571770228,0.01768597,88701.0,88700.0,0.251209]
[1740571770441,0.3,88725.0,88710.0,0.16909]
[1740571770648,0.00126603,88711.0,88710.0,0.47215487]
[1740571770818,0.00126603,88711.0,88710.0,0.30306487]
[1740571771383,0.00126603,88711.0,88710.0,0.38046487]
[1740571771794,0.00126603,88711.0,88710.0,0.55155487]
[1740571772200,0.00126603,88711.0,88710.0,0.54955487]
[1740571772397,0.00126603,88711.0,88710.0,0.56709572]
[1740571772833,0.00126603,88711.0,88710.0,0.56409572]
[1740571773251,0.00126603,88711.0,88710.0,0.56909572]
[1740571773685,0.00126603,88711.0,88710.0,0.60852524]
[1740571773891,0.00126603,88711.0,88710.0,0.60652524]
[1740571774072,0.00226603,88711.0,88710.0,0.61252524]
[1740571774268,0.00226603,88711.0,88710.0,0.57309572]
[1740571774602,0.00226603,88711.0,88710.0,0.61839572]
[1740571774897,0.00226603,88711.0,88710.0,0.62439572]
[1740571775645,0.00226603,88711.0,88710.0,0.64716812]
[1740571776422,0.00126603,88711.0,88710.0,0.64116812]
[1740571776677,0.00126603,88711.0,88710.0,0.45753727]
[1740571776896,0.17135403,88711.0,88710.0,0.45160487]
[1740571777119,0.17135403,88711.0,88710.0,0.31606487]
[1740571777329,0.17035403,88711.0,88710.0,0.30906487]
[1740571777543,0.47035403,88711.0,88710.0,0.006]
[1740571777761,0.47135403,88711.0,88710.0,0.007]
[1740571778228,0.47135403,88711.0,88710.0,0.014]
[1740571778433,0.47135403,88711.0,88710.0,0.007]
[1740571778608,0.47135403,88711.0,88710.0,0.008]
[1740571779209,0.47035403,88711.0,88710.0,0.001]
[1740571779410,0.47035403,88711.0,88710.0,0.002]
[1740571779948,0.47035403,88711.0,88710.0,0.001]
[1740571782088,0.16912,88694.0,88693.0,0.00984]
[1740571783315,0.3,88710.0,88693.0,0.008]
[1740571783487,0.16912,88694.0,88693.0,0.008]
[1740571784587,0.16912,88694.0,88693.0,0.004]
[1740571785259,0.16911,88700.0,88693.0,0.004]
[1740571785435,0.03318151,88697.0,88693.0,0.004]
[1740571785647,0.469111,88699.0,88693.0,0.008]
[1740571785797,0.31768537,88699.0,88693.0,0.004]
[1740571786198,0.48679637,88699.0,88693.0,0.004]
[1740571786401,0.01768537,88699.0,88692.0,0.00984]
[1740571786811,0.01768537,88699.0,88698.0,0.169113]
[1740571787011,0.01768537,88699.0,88697.0,0.169113]
[1740571787216,0.01768537,88699.0,88698.0,0.169113]
[1740571787612,0.01768537,88699.0,88698.0,0.178953]
[1740571788016,0.01768537,88699.0,88698.0,0.00984]
[1740571788817,0.01768537,88699.0,88694.0,0.0783]
[1740571789074,0.169118,88695.0,88694.0,0.0783]
[1740571789244,0.169118,88695.0,88694.0,0.08814]
[1740571789855,0.24316837,88699.0,88694.0,0.08814]
[1740571790055,0.169118,88695.0,88694.0,0.08814]
[1740571790485,0.169118,88695.0,88694.0,0.09014]
[1740571791178,0.169118,88695.0,88694.0,0.09214]
[1740571791613,0.169117,88696.0,88694.0,0.09014]
[1740571791823,0.169118,88695.0,88694.0,0.09414]
[1740571791980,0.169118,88695.0,88694.0,0.09214]
[1740571792197,0.169118,88695.0,88694.0,0.09614]
[1740571793909,0.169118,88695.0,88694.0,0.01784]
[1740571794125,0.225485,88698.0,88694.0,0.01784]
[1740571794516,0.169118,88695.0,88694.0,0.01784]
[1740571795062,0.169118,88695.0,88694.0,0.01384]
[1740571795263,0.3,88702.0,88694.0,0.01284]
[1740571795469,0.16911,88700.0,88694.0,0.01284]
[1740571795684,0.169116,88697.0,88694.0,0.01284]
[1740571795889,0.169116,88697.0,88694.0,0.00984]
[1740571796088,0.169116,88697.0,88694.0,0.01684]
[1740571796647,0.169117,88696.0,88694.0,0.01284]
[1740571796846,0.169117,88696.0,88694.0,0.01584]
[1740571797462,0.01768512,88701.0,88694.0,0.01284]
[1740571797683,0.169118,88695.0,88694.0,0.01284]
[1740571797841,0.169118,88695.0,88694.0,0.01484]
[1740571798247,0.169118,88695.0,88694.0,0.00984]
[1740571798516,0.169126,88691.0,88690.0,0.0004241]
[1740571798663,0.469126,88691.0,88690.0,0.0004241]
[1740571799299,0.48681447,88691.0,88690.0,0.0004241]
[1740571799676,0.49525463,88691.0,88690.0,0.0004241]
[1740571799878,0.32612863,88691.0,88690.0,0.0004241]
[1740571800078,0.31768847,88691.0,88690.0,0.0004241]
[1740571800539,0.48681447,88691.0,88690.0,0.0004241]
[1740571800842,0.47566326,88691.0,88690.0,0.0004241]
[1740571801372,0.30653726,88691.0,88690.0,0.0004241]
[1740571801552,0.29184879,88691.0,88690.0,0.0004241]
[1740571801768,0.46097479,88691.0,88690.0,0.0004241]
[1740571801972,0.45107403,88691.0,88690.0,0.0004241]
[1740571802175,0.45107403,88691.0,88690.0,0.0014241]
[1740571802384,0.27994803,88691.0,88690.0,0.0014241]
[1740571803549,0.44907403,88691.0,88690.0,0.0014241]
[1740571804102,0.169133,88688.0,88685.0,0.04494864]
[1740571804241,0.169129,88690.0,88685.0,0.04494864]
[1740571804443,0.3,88689.0,88685.0,0.04494864]
[1740571804668,0.169135,88687.0,88685.0,0.04494864]
[1740571805154,0.3,88689.0,88685.0,0.04494864]
[1740571805654,0.169136,88686.0,88685.0,0.04494864]
[1740571805891,0.169152,88678.0,88676.0,0.30306487]
[1740571806095,0.225507,88689.0,88677.0,0.00984]
[1740571806243,0.169151,88678.0,88677.0,0.00984]
[1740571806607,0.225507,88689.0,88668.0,0.0788]
[1740571806813,0.3,88689.0,88668.0,0.0788]
[1740571807010,0.169166,88670.0,88669.0,0.00984]
[1740571807586,0.469166,88670.0,88669.0,0.00984]
[1740571808416,0.469166,88670.0,88632.0,0.0004241]
[1740571808417,0.3,88660.0,88632.0,0.0004241]
[1740571808619,0.469206,88649.0,88632.0,0.0004241]
[1740571808843,0.3,88641.0,88632.0,0.0004241]
[1740571809042,0.169229,88637.0,88636.0,0.00053718]
[1740571810485,0.18692738,88637.0,88636.0,0.00053718]
[1740571811359,0.169229,88637.0,88636.0,0.00053718]
[1740571811689,0.169229,88637.0,88636.0,0.00153718]
[1740571811892,0.169229,88637.0,88636.0,0.00253718]
[1740571812293,0.169229,88637.0,88636.0,0.00153718]
[1740571812519,0.17792328,88637.0,88636.0,0.00153718]
[1740571812718,0.17892328,88637.0,88636.0,0.00053718]
[1740571814063,0.00012727,88632.0,88622.0,0.00984]
[1740571814220,0.169254,88624.0,88622.0,0.00996548]
[1740571814422,0.169256,88623.0,88622.0,0.00996548]
[1740571814830,0.00012727,88632.0,88622.0,0.00996548]
[1740571815029,0.3,88629.0,88622.0,0.00996548]
[1740571815229,0.3,88629.0,88622.0,0.01496548]
[1740571815435,0.3,88629.0,88622.0,0.01396548]
[1740571815861,0.01769818,88628.0,88622.0,0.01496548]
[1740571816060,0.169256,88623.0,88622.0,0.01596548]
[1740571816258,0.169256,88623.0,88622.0,0.01096548]
[1740571816552,0.51051852,88623.0,88622.0,0.00112548]
[1740571816765,0.469256,88623.0,88622.0,0.00112548]
[1740571817595,0.3,88623.0,88622.0,0.00012548]
[1740571817799,0.3,88623.0,88622.0,0.00512548]
[1740571818005,0.3,88623.0,88622.0,0.00212548]
[1740571818309,0.01769818,88628.0,88622.0,0.00412548]
[1740571818713,0.01769818,88628.0,88622.0,0.00312548]
[1740571818714,0.3,88627.0,88622.0,0.00312548]
[1740571818907,0.3,88627.0,88622.0,0.00812548]
[1740571819220,0.169256,88623.0,88622.0,0.00012548]
[1740571819551,0.169256,88623.0,88622.0,0.00312548]
[1740571820573,0.169256,88623.0,88622.0,0.00712548]
[1740571820785,0.169256,88623.0,88622.0,0.00412548]
[1740571820981,0.169256,88623.0,88622.0,0.00012548]
[1740571821192,0.169256,88623.0,88622.0,0.00612548]
[1740571821545,0.169256,88623.0,88622.0,0.00312548]
[1740571821687,0.19740345,88623.0,88622.0,0.00712548]
[1740571822339,0.19740345,88623.0,88622.0,0.00754988]
[1740571823523,0.169256,88623.0,88622.0,0.00754988]
[1740571823938,0.19754301,88623.0,88622.0,0.00754988]
[1740571824356,0.21702939,88625.0,88622.0,0.00754988]
[1740571824523,0.169256,88623.0,88622.0,0.00754988]
[1740571825683,0.169256,88623.0,88622.0,0.00454988]
[1740571826267,0.0293124,88626.0,88622.0,0.00454988]
[1740571826422,0.169256,88623.0,88622.0,0.00454988]
[1740571826875,0.169256,88623.0,88622.0,0.00754988]
[1740571827121,0.169256,88623.0,88622.0,0.00354988]
[1740571827326,0.169256,88623.0,88622.0,0.00054988]
[1740571827541,0.169256,88623.0,88622.0,0.00654988]
[1740571827658,0.169256,88623.0,88622.0,0.00454988]
[1740571828061,0.169256,88623.0,88622.0,0.00854988]
[1740571828950,0.169254,88625.0,88622.0,0.00854988]
[1740571829826,0.02800013,88626.0,88622.0,0.00854988]
[1740571830200,0.01769848,88628.0,88622.0,0.00854988]
[1740571830422,0.02803168,88626.0,88622.0,0.00054988]
[1740571830560,0.01769848,88628.0,88622.0,0.00054988]
[1740571830760,0.3,88627.0,88622.0,0.00654988]
[1740571830967,0.01769848,88628.0,88622.0,0.00654988]
[1740571831385,0.32820095,88628.0,88622.0,0.00354988]
[1740571831647,0.169256,88623.0,88622.0,0.00554988]
[1740571831818,0.169256,88623.0,88622.0,0.00254988]
[1740571832025,0.17495401,88623.0,88622.0,0.00454988]
[1740571832237,0.17495401,88623.0,88622.0,0.00254988]
[1740571833413,0.17495401,88623.0,88622.0,0.00154988]
[1740571833810,0.17495401,88623.0,88622.0,0.00554988]
[1740571834015,0.17495401,88623.0,88622.0,0.00054988]
[1740571834222,0.17495401,88623.0,88622.0,0.00154988]
[1740571834560,0.47495401,88623.0,88622.0,0.00354988]
[1740571835370,0.47495401,88623.0,88622.0,0.11625588]
[1740571836634,0.47495401,88623.0,88622.0,0.11525588]
[1740571836999,0.47495401,88623.0,88622.0,0.11325588]
[1740571837422,0.49265271,88623.0,88622.0,0.11325588]
[1740571837639,0.49365271,88623.0,88622.0,0.11325588]
[1740571843079,0.47595401,88623.0,88622.0,0.11325588]
[1740571846185,0.49365389,88623.0,88622.0,0.11325588]
[1740571851419,0.47595401,88623.0,88622.0,0.11325588]
[1740571853387,0.47595401,88623.0,88622.0,0.08215225]
[1740571855842,0.49365377,88623.0,88622.0,0.08215225]
[1740571859373,0.49365377,88623.0,88622.0,0.08257665]
[1740571861401,0.47595401,88623.0,88622.0,0.08257665]
[1740571865202,0.47595401,88623.0,88622.0,0.20887665]
[1740571865438,0.30669801,88623.0,88622.0,0.20887665]
[1740571865680,0.47595401,88623.0,88622.0,0.20887665]
[1740571865903,0.49365385,88623.0,88622.0,0.20887665]
[1740571866132,0.32439785,88623.0,88622.0,0.20887665]
[1740571866376,0.49265385,88623.0,88622.0,0.20887665]
[1740571866598,0.49365385,88623.0,88622.0,0.20887665]
[1740571867045,0.49265385,88623.0,88622.0,0.20887665]
[1740571867455,0.49265385,88623.0,88622.0,0.20987665]
[1740571868742,0.49265385,88623.0,88622.0,0.20887665]
[1740571868944,0.00679943,88623.0,88622.0,0.20887665]
[1740571869153,0.17605543,88623.0,88622.0,0.20987665]
[1740571869373,0.1869552,88623.0,88622.0,0.08357665]
[1740571869794,0.10015141,88632.0,88622.0,0.08357665]
[1740571870008,0.17520576,88623.0,88622.0,0.08357665]
[1740571870285,0.169256,88623.0,88622.0,0.08357665]
[1740571870496,0.17520576,88623.0,88622.0,0.08357665]
[1740571870752,0.17705456,88623.0,88622.0,0.08357665]
[1740571870934,0.169256,88623.0,88622.0,0.08357665]
[1740571871191,0.17619739,88623.0,88622.0,0.08357665]
[1740571871461,0.17619739,88623.0,88622.0,0.08257665]
[1740571872154,0.17719739,88623.0,88622.0,0.08257665]
[1740571872372,0.00794139,88623.0,88622.0,0.08257665]
[1740571873484,0.001,88623.0,88622.0,0.17632432]
[1740571873689,0.001,88623.0,88622.0,0.15977665]
[1740571874086,0.00823157,88623.0,88622.0,0.15977665]
[1740571874318,0.001,88623.0,88622.0,0.15977665]
[1740571874498,0.00823157,88623.0,88622.0,0.15977665]
[1740571874636,0.169252,88625.0,88622.0,0.15977665]
[1740571874842,0.17648757,88623.0,88622.0,0.15977665]
[1740571875042,0.169256,88623.0,88622.0,0.15977665]
[1740571875243,0.170256,88623.0,88622.0,0.15977665]
[1740571875504,0.17748757,88623.0,88622.0,0.15977665]
[1740571875726,0.00823157,88623.0,88622.0,0.15977665]
[1740571876134,0.17748757,88623.0,88622.0,0.15977665]
[1740571876602,0.00823157,88623.0,88622.0,0.15977665]
[1740571877011,0.001,88623.0,88622.0,0.15977665]
[1740571877214,0.00813057,88623.0,88622.0,0.15977665]
[1740571877416,0.001,88623.0,88622.0,0.15977665]
[1740571877755,0.17738657,88623.0,88622.0,0.15977665]
[1740571877967,0.001,88623.0,88622.0,0.15977665]
[1740571878174,0.00813057,88623.0,88622.0,0.15977665]
[1740571878378,0.001,88623.0,88622.0,0.15977665]
[1740571878512,0.17738696,88623.0,88622.0,0.15977665]
[1740571878920,0.30813096,88623.0,88622.0,0.15977665]
[1740571880186,0.47738696,88623.0,88622.0,0.15977665]
[1740571881448,0.30813096,88623.0,88622.0,0.15977665]
[1740571882269,0.47738696,88623.0,88622.0,0.15977665]
[1740571882947,0.30813096,88623.0,88622.0,0.15977665]
[1740571883377,0.00813096,88623.0,88622.0,0.15977665]
[1740571883700,0.001,88623.0,88622.0,0.15977665]
[1740571883907,0.001,88623.0,88622.0,0.37653465]
[1740571884535,0.001,88623.0,88622.0,0.20727665]
[1740571884883,0.03698501,88632.0,88622.0,0.20727665]
[1740571884884,0.03698501,88632.0,88624.0,0.0805]
[1740571885046,0.0008488,88632.0,88624.0,0.0805]
[1740571885266,0.00741353,88631.0,88624.0,0.0805]
[1740571885467,0.169245,88629.0,88624.0,0.0805]
[1740571885677,0.00741353,88631.0,88624.0,0.0805]
[1740571885886,0.00739945,88628.0,88624.0,0.0805]
[1740571886091,0.00725129,88627.0,88624.0,0.0805]
[1740571886381,0.00725129,88627.0,88624.0,0.0825]
[1740571886605,0.225662,88628.0,88624.0,0.0825]
[1740571886822,0.00724633,88626.0,88624.0,0.0825]
[1740571887023,0.16925,88627.0,88624.0,0.0825]
[1740571887228,0.00724138,88625.0,88624.0,0.0825]
[1740571887438,0.169246,88629.0,88624.0,0.0805]
[1740571887635,0.01769804,88630.0,88624.0,0.0805]
[1740571887636,0.00724138,88625.0,88624.0,0.0805]
[1740571887841,0.01769804,88630.0,88624.0,0.0805]
[1740571888041,0.169249,88627.0,88624.0,0.0805]
[1740571888277,0.469252,88625.0,88624.0,0.0805]
[1740571888713,0.47644613,88625.0,88624.0,0.0805]
[1740571889266,0.469254,88624.0,88623.0,0.0492]
[1740571889478,0.469256,88623.0,88622.0,0.08257665]
[1740571889877,0.47644021,88623.0,88622.0,0.08257665]
[1740571891574,0.47744021,88623.0,88622.0,0.08257665]
[1740571892261,0.47844021,88623.0,88622.0,0.08257665]
[1740571895568,0.00918421,88623.0,88622.0,0.08257665]
[1740571895771,0.17844021,88623.0,88622.0,0.08257665]
[1740571900105,0.47844021,88623.0,88622.0,0.08257665]
[1740571900322,0.469279,88611.0,88610.0,0.0004241]
[1740571900737,0.47624085,88611.0,88610.0,0.0004241]
[1740571901157,0.169284,88608.0,88607.0,8e-07]
[1740571901360,0.469298,88601.0,88600.0,0.00014749]
[1740571901565,0.47625398,88601.0,88600.0,0.00014749]
[1740571903097,0.48125398,88601.0,88600.0,0.00014749]
[1740571903506,0.53160409,88601.0,88600.0,0.00014749]
[1740571904327,0.50141301,88601.0,88600.0,0.00014749]
[1740571904567,0.47625398,88601.0,88600.0,0.00014749]
[1740571904774,0.48525398,88601.0,88600.0,0.00014749]
[1740571904985,0.50841301,88601.0,88600.0,0.00014749]
[1740571905191,0.50841301,88601.0,88600.0,0.00057189]
[1740571907465,0.48525398,88601.0,88600.0,0.00057189]
[1740571908085,0.31595598,88601.0,88600.0,0.00057189]
[1740571908723,0.31095598,88601.0,88600.0,0.00057189]
[1740571908931,0.31095598,88601.0,88600.0,0.08027189]
[1740571908932,0.01195598,88601.0,88600.0,0.08027189]
[1740571909313,0.01295598,88601.0,88600.0,0.08027189]
[1740571909536,0.01195598,88601.0,88600.0,0.08027189]
[1740571910378,0.00695598,88601.0,88600.0,0.08027189]
[1740571910592,0.3,88604.0,88600.0,0.08027189]
[1740571910799,0.00862987,88611.0,88600.0,0.08027189]
[1740571910800,0.00862987,88611.0,88601.0,0.0473]
[1740571910997,0.00862987,88611.0,88602.0,0.08]
[1740571911146,0.3,88609.0,88602.0,0.08]
[1740571911353,0.3,88630.0,88602.0,0.079]
[1740571911584,0.3293,88631.0,88602.0,0.079]
[1740571911778,0.169294,88603.0,88602.0,0.079]
[1740571912219,0.469294,88603.0,88602.0,0.079]
[1740571912998,0.469294,88603.0,88602.0,0.077]
[1740571913203,0.469294,88603.0,88602.0,0.074]
[1740571913415,0.3,88603.0,88602.0,0.074]
[1740571915949,0.469294,88603.0,88602.0,0.076]
[1740571916593,0.469294,88603.0,88602.0,0.078]
[1740571916917,0.4701432,88603.0,88602.0,0.074]
[1740571917127,0.4701432,88603.0,88602.0,0.076]
[1740571917340,0.4701432,88603.0,88602.0,0.078]
[1740571917770,0.47718897,88603.0,88602.0,0.078]
[1740571918173,0.47718897,88603.0,88602.0,0.076]
[1740571918601,0.47718897,88603.0,88602.0,0.074]
[1740571919853,0.30789497,88603.0,88602.0,0.074]
[1740571920245,0.30889497,88603.0,88602.0,0.074]
[1740571920437,0.30789497,88603.0,88602.0,0.074]
[1740571921150,0.47718897,88603.0,88602.0,0.074]
[1740571922850,0.30789497,88603.0,88602.0,0.074]
[1740571923346,0.00789497,88603.0,88602.0,0.074]
[1740571923567,0.00789497,88603.0,88602.0,0.59464074]
[1740571923795,0.0008492,88603.0,88602.0,0.60302087]
[1740571924028,0.00012536,88623.0,88603.0,0.1216]
[1740571924217,0.00873561,88623.0,88607.0,0.169286]
[1740571924465,0.00012536,88623.0,88604.0,0.05303952]
[1740571924687,0.00012536,88623.0,88608.0,0.169284]
[1740571924912,0.00012536,88623.0,88610.0,0.1274]
[1740571925123,0.00012536,88623.0,88611.0,0.0812]
[1740571925338,0.3,88622.0,88611.0,0.0812]
[1740571925753,0.00592699,88621.0,88611.0,0.0812]
[1740571926597,0.169277,88612.0,88611.0,0.0812]
[1740571926809,0.17519912,88612.0,88611.0,0.0812]
[1740571927442,0.169288,88606.0,88605.0,0.0781]
[1740571927851,0.00589235,88606.0,88605.0,0.0781]
[1740571928245,0.3,88622.0,88605.0,0.0781]
[1740571928454,0.00586748,88606.0,88605.0,0.0781]
[1740571928693,0.00012536,88623.0,88605.0,0.0781]
[1740571928897,0.00012536,88623.0,88605.0,0.0811]
[1740571928898,0.3,88621.0,88605.0,0.0811]
[1740571929103,0.169277,88612.0,88611.0,0.001]
[1740571929559,0.00592709,88612.0,88611.0,0.001]
[1740571929936,0.3,88621.0,88611.0,0.001]
[1740571929937,0.3,88619.0,88611.0,0.001]
[1740571930171,0.00677609,88612.0,88611.0,0.001]
[1740571930357,0.170126,88612.0,88611.0,0.001]
[1740571930566,0.000849,88612.0,88611.0,0.001]
[1740571930727,0.000849,88612.0,88605.0,0.0781]
[1740571931333,0.000849,88612.0,88605.0,0.10923384]
[1740571931573,0.000849,88612.0,88604.0,0.1315]
[1740571931714,0.000849,88612.0,88605.0,0.0819]
[1740571931918,0.000849,88612.0,88611.0,0.083]
[1740571932333,0.170126,88612.0,88611.0,0.083]
[1740571932735,0.470126,88612.0,88611.0,0.083]
[1740571932941,0.470126,88612.0,88611.0,0.082]
[1740571933505,0.469288,88606.0,88605.0,0.0803]
[1740571933710,0.3,88606.0,88605.0,0.0803]
[1740571933917,0.469288,88606.0,88605.0,0.0803]
[1740571934116,0.469288,88606.0,88605.0,0.0833]
[1740571936400,0.3,88606.0,88605.0,0.0843]
[1740571936803,0.3,88606.0,88605.0,0.0813]
[1740571937188,0.3,88606.0,88605.0,0.0853]
[1740571938675,0.000849,88612.0,88605.0,0.0853]
[1740571939429,0.000849,88612.0,88605.0,0.0813]
[1740571939671,0.000849,88612.0,88605.0,0.0773]
[1740571940078,0.000849,88612.0,88605.0,0.0803]
[1740571943470,0.000849,88612.0,88606.0,0.0798]
[1740571945518,0.000849,88612.0,88606.0,0.0818]
[1740571945725,0.000849,88612.0,88606.0,0.0828]
[1740571946727,0.169279,88611.0,88606.0,0.0828]
[1740571947157,0.170126,88612.0,88606.0,0.0828]
[1740571947358,0.000849,88612.0,88606.0,0.0828]
[1740571948213,0.000849,88612.0,88606.0,0.0808]
[1740571948414,0.000849,88612.0,88606.0,0.0828]
[1740571948588,0.000849,88612.0,88606.0,0.0818]
[1740571948792,0.000849,88612.0,88606.0,0.0838]
[1740571949158,0.000849,88612.0,88606.0,0.0798]
[1740571949336,0.000849,88612.0,88606.0,0.0818]
[1740571949537,0.000849,88612.0,88606.0,0.0828]
[1740571950440,0.169286,88607.0,88606.0,0.0828]
[1740571950833,0.469286,88607.0,88606.0,0.003]
[1740571951490,0.3,88607.0,88606.0,0.003]
[1740571951701,0.3,88606.0,88603.0,0.000424]
[1740571952078,0.469288,88606.0,88603.0,0.000424]
[1740571952458,0.3,88606.0,88603.0,0.000424]
[1740571952666,0.000849,88612.0,88603.0,0.000424]
[1740571952870,0.3,88610.0,88603.0,0.000424]
[1740571953033,0.3,88608.0,88603.0,0.006424]
[1740571953251,0.300849,88612.0,88603.0,0.006424]
[1740571953455,0.3,88610.0,88603.0,0.006424]
[1740571954130,0.169283,88609.0,88603.0,0.006424]
[1740571954489,0.169286,88608.0,88603.0,0.006424]
[1740571954704,0.000849,88612.0,88603.0,0.000424]
[1740571955146,0.000849,88612.0,88603.0,0.002424]
[1740571955317,0.3,88608.0,88603.0,0.001424]
[1740571955793,0.3,88608.0,88604.0,0.0762]
[1740571955998,0.000849,88612.0,88606.0,0.0762]
[1740571956923,0.000849,88612.0,88610.0,0.0815]
[1740571957357,0.000849,88612.0,88610.0,0.0830798]
[1740571957917,0.000849,88612.0,88611.0,0.169279]
[1740571958075,0.000849,88612.0,88611.0,0.0815]
[1740571958306,0.000849,88612.0,88611.0,0.250779]
[1740571958485,0.000849,88612.0,88611.0,0.35023598]
[1740571958697,0.000849,88612.0,88611.0,0.1283]
[1740571959697,0.000849,88612.0,88611.0,0.1293]
[1740571959951,0.000849,88612.0,88611.0,0.1323]
[1740571960312,0.000849,88612.0,88611.0,0.14218]
[1740571961177,0.000849,88612.0,88611.0,0.14118]
[1740571961369,0.000849,88612.0,88611.0,0.14518]
[1740571961750,0.000849,88612.0,88611.0,0.314459]
[1740571962161,0.000849,88612.0,88611.0,0.14518]
[1740571962383,0.000849,88612.0,88611.0,0.314459]
[1740571963385,0.000849,88612.0,88611.0,0.14518]
[1740571965915,0.000849,88612.0,88611.0,0.44824487]
[1740571968545,0.000849,88612.0,88611.0,0.61752387]
[1740571969593,0.18211981,88631.0,88611.0,0.61752387]
[1740571969955,0.169241,88631.0,88612.0,0.27839429]
[1740571970213,0.03664868,88632.0,88613.0,0.247975]
[1740571970439,0.20588768,88632.0,88613.0,0.247975]
[1740571971129,0.004,88631.0,88615.0,0.0493]
[1740571971358,0.004,88631.0,88617.0,0.0832]
[1740571971572,0.03664868,88632.0,88618.0,0.0015796]
[1740571971806,0.03664868,88632.0,88619.0,0.252462]
[1740571972031,0.04064868,88632.0,88620.0,0.0015796]
[1740571972686,0.04064868,88632.0,88619.0,0.0832]
[1740571972860,0.0048488,88632.0,88621.0,0.0486]
[1740571973060,0.004,88631.0,88622.0,0.38106487]
[1740571973269,0.0008488,88632.0,88622.0,0.38106487]